{"text_format":"1","workbook":"xlsx","n_sheets":5,"sheets":["入力シート","使い方","エラーメッセージ一覧","Add_Plan_Style","OCTO-W9-0331-001.xsd"],"not_rendered":{"charts":0,"images":1,"macros":1,"external_links":1,"defined_names":2,"comments":2,"pivot_tables":0},"unopened":[],"bounds":{"document_bytes":16777216,"sheet_cells":100000,"rows_first":2000,"rows_last":500,"rows_between":2000,"halvings":0,"cell_chars":16384,"cell_head_chars":4096},"cells_cut":0,"cells_raw":0,"read":"whole","date_system":"1900"}

{"sheet":"入力シート","index":0,"n_rows":71,"n_cols":11,"rows_kept":71,"cut":false,"hidden":false,"merged":[[13,3,14,3],[15,3,18,3],[10,10,10,12],[10,5,10,8],[9,5,9,8],[2,6,2,12],[3,6,3,12],[5,3,5,8],[5,9,5,12],[9,10,9,12],[8,5,8,8],[8,10,8,12],[6,5,6,8],[6,10,6,12],[7,5,7,8],[7,10,7,12],[20,0,25,0],[62,0,67,0],[68,1,68,2],[26,0,31,0],[32,0,37,0],[38,0,43,0],[44,0,49,0],[50,0,55,0],[56,0,61,0]]}
[null,null,null,"三次調整力①直前計測型基準値内訳実績入力支援ツール"]
[]
[null,null,null,"対象年月日",null,"読込ファイル名",""]
[null,null,null,"対象商品ブロック","ブロック①","出力先",""]
[null,null,null,"対象需要家リスト・パターン","パターン①"]
[null,null,null,"基本情報",null,null,null,null,null,"出力ファイル名情報"]
[null,null,null,null,"コード","名称▲",null,null,null,"XMLファイル名",{"$f":"\"W9_\"&E8&\"_\"&K8&\"_\"&K9&\"_\"&K10&\"_\"&K11&\".xml\"","v":"W9_0331__01__.xml"}]
[null,null,null,"情報区分","0331","三次調整力①直前計測型基準値内訳実績",null,null,null,"対象時期の開始日",{"$f":"IF(E3=\"\",\"\",E3)","v":""}]
[null,null,null,"提出先事業者",null,null,null,null,null,"約定対象開始コマ番号","01"]
[null,null,null,"送信事業者",null,null,null,null,null,"アグリゲータ用系統コード",{"$f":"IF(E11=\"\",\"\",E11)","v":""}]
[null,null,null,"提出者（アグリゲータ用系統コード）",null,null,null,null,null,"電源等コード",""]
[null,null,null,"運用モード","通常"]
[]
[null,null,null,"合計基準値","基準値内訳"]
[null,null,null,null,"小売電気事業者1"]
[null,null,null,"合計基準値＝\nΣ基準値内訳","小売電気事業者コード"]
[]
[null,null,null,null,"小売電気事業者名称▲"]
[]
["対象ブロック","#","時間帯","合計基準値(kWh)","基準値(kWh)"]
["ブロック①","01","0:00～0:30",{"$f":"SUM(E21:E21)","v":0}]
[null,"02","0:30～1:00",0]
[null,"03","1:00～1:30",0]
[null,"04","1:30～2:00",0]
[null,"05","2:00～2:30",0]
[null,"06","2:30～3:00",0]
["ブロック②","07","3:00～3:30"]
[null,"08","3:30～4:00"]
[null,"09","4:00～4:30"]
[null,10,"4:30～5:00"]
[null,11,"5:00～5:30"]
[null,12,"5:30～6:00"]
["ブロック③",13,"6:00～6:30"]
[null,14,"6:30～7:00"]
[null,15,"7:00～7:30"]
[null,16,"7:30～8:00"]
[null,17,"8:00～8:30"]
[null,18,"8:30～9:00"]
["ブロック④",19,"9:00～9:30"]
[null,20,"9:30～10:00"]
[null,21,"10:00～10:30"]
[null,22,"10:30～11:00"]
[null,23,"11:00～11:30"]
[null,24,"11:30～12:00"]
["ブロック⑤",25,"12:00～12:30"]
[null,26,"12:30～13:00"]
[null,27,"13:00～13:30"]
[null,28,"13:30～14:00"]
[null,29,"14:00～14:30"]
[null,30,"14:30～15:00"]
["ブロック⑥",31,"15:00～15:30"]
[null,32,"15:30～16:00"]
[null,33,"16:00～16:30"]
[null,34,"16:30～17:00"]
[null,35,"17:00～17:30"]
[null,36,"17:30～18:00"]
["ブロック⑦",37,"18:00～18:30"]
[null,38,"18:30～19:00"]
[null,39,"19:00～19:30"]
[null,40,"19:30～20:00"]
[null,41,"20:00～20:30"]
[null,42,"20:30～21:00"]
["ブロック⑧",43,"21:00～21:30"]
[null,44,"21:30～22:00"]
[null,45,"22:00～22:30"]
[null,46,"22:30～23:00"]
[null,47,"23:00～23:30"]
[null,48,"23:30～24:00"]
[null,"対象約定ブロック合計",null,{"$f":"SUM(D21:D26)","v":0},{"$f":"SUM(E21:E26)","v":0}]
[]
[null,null,null,{"$f":"SUM(D29:D34)","v":0},{"$f":"SUM(#REF!)","v":{"$error":"#REF!"}},{"$f":"SUM(#REF!)","v":{"$error":"#REF!"}},{"$f":"SUM(#REF!)","v":{"$error":"#REF!"}},{"$f":"SUM(#REF!)","v":{"$error":"#REF!"}},{"$f":"SUM(#REF!)","v":{"$error":"#REF!"}},{"$f":"SUM(#REF!)","v":{"$error":"#REF!"}},{"$f":"SUM(#REF!)","v":{"$error":"#REF!"}}]

{"sheet":"使い方","index":1,"n_rows":86,"n_cols":11,"rows_kept":86,"cut":false,"hidden":false,"merged":[[80,0,85,1],[80,3,80,4],[80,5,80,7],[80,8,80,9],[81,3,81,4],[81,5,81,7],[81,8,81,9],[82,3,82,4],[82,5,82,7],[82,8,82,9],[85,3,85,4],[85,5,85,7],[85,8,85,9],[78,5,78,7],[78,8,78,9],[79,3,79,4],[79,5,79,7],[79,8,79,9],[83,3,83,4],[83,5,83,7],[83,8,83,9],[84,3,84,4],[84,5,84,7],[84,8,84,9],[78,3,78,4],[78,10,85,14],[71,0,71,1],[71,3,71,4],[71,5,71,7],[71,8,71,9],[72,0,79,1],[72,3,72,4],[72,5,72,7],[72,8,72,9],[73,3,73,4],[76,3,76,4],[76,5,76,7],[76,8,76,9],[77,3,77,4],[77,5,77,7],[77,8,77,9],[73,5,73,7],[73,8,73,9],[74,3,74,4],[74,5,74,7],[74,8,74,9],[75,3,75,4],[75,5,75,7],[75,8,75,9],[67,5,70,7],[67,8,67,9],[68,8,68,9],[69,8,69,9],[53,0,53,5],[53,6,53,14],[54,0,54,5],[54,6,54,14],[55,0,55,5],[55,6,55,14],[70,8,70,9],[65,0,70,4],[65,5,66,7],[65,8,65,9],[66,8,66,9],[66,10,68,14],[69,10,70,14],[44,0,44,13],[49,0,49,7],[50,0,50,14],[51,0,51,5],[51,6,51,14],[52,0,52,5],[52,6,52,14],[40,0,40,5],[40,6,40,7],[40,8,40,13],[41,0,41,5],[41,6,41,7],[41,8,41,13],[38,0,38,5],[38,6,38,7],[38,8,38,13],[39,0,39,5],[39,6,39,7],[39,8,39,13],[34,0,34,7],[35,0,35,13],[36,0,36,5],[36,6,36,7],[36,8,36,13],[37,0,37,5],[37,6,37,7],[37,8,37,13],[0,0,1,11],[30,0,30,3],[30,4,30,5],[30,6,30,13],[31,0,31,3],[31,4,31,5],[31,6,31,13],[4,5,20,13],[23,0,25,13],[28,0,28,7],[29,0,29,3],[29,4,29,5],[29,6,29,13]]}
["三次調整力①直前計測型基準値内訳実績入力支援ツールの使用方法"]
[]
[]
["①起動ボタンの説明"]
[null,null,null,null,null,"本ツールは用途に合わせ，左図のボタンを押下して使用します。\n各ボタンの機能は，下記の通りです。\n・『対象商品ブロック変更』ボタン\n　作成する基準値計画の対象となる商品ブロックを選択します。\n・『小売電気事業者数変更』ボタン\n　作成する基準値計画の内訳となる小売電気事業者数を変更します。\n・『基準値XML読込』ボタン\n　過去に作成した基準値計画のXMLファイルを読み込みます。\n・『基準値XML出力』ボタン\n　入力シートで作成した基準値計画をXMLファイル形式で出力します。\n・『XMLファイル妥当性検証』ボタン\n　本ツール以外で作成した基準値計画のXMLをスキーマと照合してビジネスプロトコル標準規格に準拠しているか妥当性を検証します。なお，本ツールでXMLファイルの読み込みおよび出力を行った場合，スキーマによる妥当性を検証しているため，この操作は不要です。\n・『終了（上書保存）』ボタン\n　入力シートを上書き保存した後，本エクセルブックを閉じます。\n"]
[]
[]
[]
[]
[]
[]
[]
[]
[]
[]
[]
[]
[]
[]
[]
[]
[]
["②入力項目の説明"]
["本ツールは，『入力シート』の白色セルの所定の項目を入力した上で，XMLファイルに変換します。白色セルで『▲』マークが記されていない箇所は，必須入力項目です。具体的な入力方法は次項以降で説明します。"]
[]
[]
[]
["②－１　ファイル情報の入力"]
["ファイル情報の具体的な入力規則は下記の通りです。"]
["対象年月日",null,null,null,"20210405",null,"対象年月日は『YYYYMMDD』形式で半角数字8桁で入力。"]
["対象商品ブロック",null,null,null,"ブロック②",null,"対象商品ブロックは，『対象商品ブロック変更』ボタンを押下して選択。"]
["対象需要家リスト・パターン",null,null,null,"パターン④",null,"パターンは原則『パターン①』～『パターン⑩』を選択。"]
[]
["②－２　基本情報の入力"]
["基本情報の具体的な入力規則は下記の通りです。"]
["基本情報"]
[null,null,null,null,null,null,"コード",null,"名称▲"]
["情報区分",null,null,null,null,null,"0331",null,"三次調整力 ①直前計測型基準値内訳実績"]
["提出先事業者",null,null,null,null,null,"10033",null,"東京電力パワーグリッド株式会社"]
["送信事業者",null,null,null,null,null,"80363",null,"グローバルエナジーアグリゲーター"]
["提出者（アグリゲーター用系統コード）",null,null,null,null,null,"3Y543",null,"グローバルエナジーアグリゲーター"]
["運用モード",null,null,null,null,null,"通常"]
[]
["情報区分は，自動入力（W9_0331で三次調整力①直前計測型基準値内訳実績を意味します）。"]
["提出先事業者は，作成する基準値計画が対象するリソースにおける属地エリアの一般送配電事業者を入力。"]
["送信事業者は，送信事業者コードと事業者名称を入力。"]
["運用モードは，約定したリソースの基準値計画として需給調整市場システムに提出する場合，『通常』を選択。"]
[]
["②－３　出力ファイル情報の入力"]
["出力ファイル情報の具体的な入力は下記の通りです。"]
["出力ファイル名情報"]
["XMLファイル名",null,null,null,null,null,"W9_0331_20210405_07_3Y5ZZ_KSS2019.xml"]
["対象時期の開始日",null,null,null,null,null,20210405]
["約定対象開始コマ番号",null,null,null,null,null,"07"]
["アグリゲータ用系統コード",null,null,null,null,null,"3Y5ZZ"]
["電源等コード",null,null,null,null,null,"KSS2019"]
[]
["XMLファイル名は，自動入力（W9_”＋情報区分＋対象年月日＋約定対象開始コマ番号＋提出者（アグリゲータ用系統コード）＋電源等コード＋”.xml”を表示）"]
["対象時期の開始日は，自動入力（適用開始希望年月日を表示）"]
["約定対象開始コマ番号は，自動入力（提出者（約定対象時間の開始時刻よりコマ番号を数値2桁で表示）"]
["アグリゲータ用系統コードは，自動入力（提出者（アグリゲータ用系統コード）を表示）"]
["電源等コードは，半角英数字（\"-\",\"_\"も使用可）で10桁以内で入力"]
[]
["②－４　基準値の入力"]
["基準値の具体的な入力規則は下記の通りです。"]
[null,null,null,null,null,"合計基準値",null,null,"基準値内訳"]
[null,null,null,null,null,null,null,null,"小売電気事業者1",null,"小売電気事業者コードは，需要リソースに電気を供給する小売電気事業者の事業者コードを半角英数字5桁で入力。"]
[null,null,null,null,null,"合計＝\nΣ基準値内訳",null,null,"小売電気事業者コード"]
[null,null,null,null,null,null,null,null,"42*93"]
[null,null,null,null,null,null,null,null,"小売電気事業者名称▲",null,"小売電気事業者名称は，需要リソースに電気を供給する小売電気事業者の名称を50文字以内で任意入力。"]
[null,null,null,null,null,null,null,null,"関東でんき"]
["対象ブロック",null,"#","時間帯",null,"合計基準値(kWh)",null,null,"基準値(kWh)"]
["ブロック①",null,47,"23:00～23:30"]
[null,null,48,"23:30～24:00"]
[null,null,"01","0:00～0:30"]
[null,null,"02","0:30～1:00"]
[null,null,"03","1:00～1:30"]
[null,null,"04","1:30～2:00"]
[null,null,"05","2:00～2:30",null,3800,null,null,3800,null,"基準値(kWh）は，需要リソースが需要抑制を実施しなかった場合の接続対象電力量(kWh)を小売電気事業者かつ30分コマ単位に半角整数で入力。"]
[null,null,"06","2:30～3:00",null,3650,null,null,3650]
["ブロック②",null,"07","3:00～3:30",null,3250,null,null,3250]
[null,null,"08","3:30～4:00",null,3250,null,null,3250]
[null,null,"09","4:00～4:30",null,3250,null,null,3250]
[null,null,10,"4:30～5:00",null,3550,null,null,3550]
[null,null,11,"5:00～5:30",null,3560,null,null,3560]
[null,null,12,"5:30～6:00",null,3650,null,null,3650]

{"sheet":"エラーメッセージ一覧","index":2,"n_rows":36,"n_cols":6,"rows_kept":36,"cut":false,"hidden":false,"merged":[]}
["■三次調整力①直前計測型基準値内訳実績入力支援ツール　エラーメッセージ一覧"]
[]
[null,"No.","操作","エラー種別","エラーメッセージ","対処方法"]
[null,{"$f":"ROW()-3","v":1},"「対象商品ブロック変更」ボタン押下","選択エラー","変更前後で同一の商品ブロックが選択されました。","【ブロック変更】\n・変更前後で異なる商品ブロックを選択してください。"]
[null,2,"「小売電気事業者数変更」ボタン押下","入力エラー","増加させる小売電気事業者数を1以上かつxxx以下の整数で入力して下さい。","【小売電気事業者数の増加】\n・増加する小売電気事業者数を見直してください。（max999）"]
[null,3,null,"入力エラー","削除する小売電気事業者番号を入力して下さい。","【小売電気事業者数減少】小売電気事業者を1個選択して削除\n・削除する小売電気事業者番号を入力してください。"]
[null,4,null,"入力エラー","削除する小売電気事業者番号を1～xxxの整数で入力して下さい。","【小売電気事業者数減少】小売電気事業者を1個選択して削除／連続した複数の小売電気事業者を削除\n・削除する小売電気事業者番号を見直してください。"]
[null,5,null,"入力エラー","現在，小売電気事業者は999個存在するため，これ以上増加できません。","【小売電気事業者数の増加】\n・小売電気事業者数の最大は999です。"]
[null,6,null,"入力エラー","現在，小売電気事業者は1個しか存在しないため，これ以上削除できません。","【小売電気事業者数減少】小売電気事業者を1個選択して削除／連続した複数の小売電気事業者を削除\n・小売電気事業者数は1個は残す必要があります。小売電気事業者数情報を確認してください。"]
[null,7,null,"入力エラー","削除する小売電気事業者番号の開始と終了番号を入力して下さい。","【小売電気事業者数減少】連続した複数の小売電気事業者を削除\n・削除する需要家番号を入力してください。"]
[null,8,null,"入力エラー","削除終了の小売電気事業者番号は，削除開始の小売電気事業者番号より同じか後にして下さい。","【小売電気事業者数減少】連続した複数の小売電気事業者を削除\n・削除する小売電気事業者番号の開始番号と終了番号を見直してください。"]
[null,9,"「基準値XML読込」ボタン押下\n「XMLファイル妥当性検証」ボタン押下","XMLエラー","読み込んだXMLファイルは下記の理由で規格に違反しているため、読込を中止します。\nエラー理由：　\n　　　　～","・エラー理由を参照しXMLファイルの指摘箇所を修正してください。"]
[null,10,"画面項目入力（入力規制）","入力エラー","対象年月日は『YYYYMMDD』形式の半角数字8桁で入力して下さい。","【ファイル情報】対象年月日\n・入力値を見直してください。"]
[null,11,null,"入力エラー","提出先事業者コードは半角英数字5桁で入力して下さい。","【基本情報】_提出先事業者（コード）\n・入力値を見直してください。"]
[null,12,null,"入力エラー","提出先事業者名称は50文字以内で入力して下さい。","【基本情報】_提出先事業者（名称▲）\n・入力値を見直してください。"]
[null,13,null,"入力エラー","送信事業者コードは半角英数字5桁で入力して下さい。","【基本情報】_送信事業者（コード）\n・入力値を見直してください。"]
[null,14,null,"入力エラー","送信事業者名称は50文字以内で入力して下さい。","【基本情報】_送信事業者（名称▲）\n・入力値を見直してください。"]
[null,15,null,"入力エラー","提出者コードは，アグリゲータ用系統コード（半角英数字5桁）を入力して下さい。","【基本情報】_提出者（アグリゲータ用系統コード）（コード）\n・入力値を見直してください。"]
[null,16,null,"入力エラー","提出者名称は50文字以内で入力して下さい。","【基本情報】_提出者（アグリゲータ用系統コード）（名称▲）\n・入力値を見直してください。"]
[null,17,null,"入力エラー","小売電気事業者コードは半角英数字5桁で入力して下さい。","【基準値内訳】小売電気事業者コード\n・入力値を見直してください。"]
[null,18,null,"入力エラー","小売電気事業者名称は50文字以内で入力して下さい。","【基準値内訳】小売電気事業者名称\n・入力値を見直してください。"]
[null,19,null,"入力エラー","基準値(kWh)は半角9桁以内かつ正の整数で入力して下さい。","【基準値内訳】基準値(kWh)\n・入力値を見直してください。"]
[null,20,"「基準値XML出力」ボタン押下","入力エラー","対象年月日は『YYYYMMDD』形式の半角数字8桁で入力してください。","【ファイル情報】対象年月日\n・入力値を見直してください。"]
[null,21,null,"入力エラー","対象年月日は存在する日付で入力してください。","【ファイル情報】対象需要家リスト・パターン\n・存在する日付を入力してください。"]
[null,22,null,"入力エラー","対象需要家リスト・パターンが選択されていません。","【ファイル情報】対象需要家リスト・パターン\n・リスト・パターンを選択してください。"]
[null,23,null,"入力エラー","対象需要家リスト・パターンに誤りがあります。","【ファイル情報】対象需要家リスト・パターン\n・パターン①～パターン⑳までのいずれかを選択してください。"]
[null,24,null,"入力エラー","提出先事業者コードは半角英数字5桁で入力してください。","【基本情報】_提出先事業者（コード）\n・入力値を見直してください。"]
[null,25,null,"入力エラー","提出先事業者名称は50文字以内で入力してください。","【基本情報】_提出先事業者（名称▲）\n・入力値を見直してください。"]
[null,26,null,"入力エラー","送信事業者コードは半角英数字5桁で入力してください。","【基本情報】_送信事業者（コード）\n・入力値を見直してください。"]
[null,27,null,"入力エラー","送信事業者名称は50文字以内で入力してください。","【基本情報】_送信事業者（名称▲）\n・入力値を見直してください。"]
[null,28,null,"入力エラー","提出者コード（アグリゲータ用系統コード）は半角英数字5桁（2桁目『Y』)で入力してください。","【基本情報】_提出者（アグリゲータ用系統コード）（コード）\n・入力値を見直してください。"]
[null,29,null,"入力エラー","提出者名称は50文字以内で入力してください。","【基本情報】_提出者（アグリゲータ用系統コード）（名称▲）\n・入力値を見直してください。"]
[null,30,null,"入力エラー","電源等コードは半角英数字10桁以内で入力してください。","【出力ファイル名情報】_電源等コード\n・入力値を見直してください。"]
[null,31,null,"入力エラー","小売電気事業者nに誤りがあります。\n小売電気事業者コードは半角英数字5桁で入力してください。","【基準値内訳】小売電気事業者コード\n・入力値を見直してください。"]
[null,32,null,"入力エラー","小売電気事業者nに誤りがあります。\n小売電気事業者名称は50文字以内で入力してください。","【基準値内訳】小売電気事業者名称\n・入力値を見直してください。"]
[null,33,null,"入力エラー","小売電気事業者nにおけるxx～xxの基準値に誤りがあります。\n基準値(kWh)は半角数字9桁以内の正の整数で入力してください。","【基準値内訳】基準値(kWh)\n・入力値を見直してください。\n※xx～xxは対象ブロック内の時間帯"]

{"sheet":"Add_Plan_Style","index":3,"n_rows":69,"n_cols":2,"rows_kept":69,"cut":false,"hidden":true,"merged":[]}
[]
[]
[]
[]
[]
[]
[]
[]
[]
[]
[]
[]
[]
[null,"基準値内訳"]
[null,"小売電気事業者1"]
[null,"小売電気事業者コード"]
[]
[null,"小売電気事業者名称▲"]
[]
[null,"基準値(kWh)"]
[]
[]
[]
[]
[]
[]
[]
[]
[]
[]
[]
[]
[]
[]
[]
[]
[]
[]
[]
[]
[]
[]
[]
[]
[]
[]
[]
[]
[]
[]
[]
[]
[]
[]
[]
[]
[]
[]
[]
[]
[]
[]
[]
[]
[]
[]
[]
[]
[null,{"$f":"SUM(B27:B32)","v":0}]

{"sheet":"OCTO-W9-0331-001.xsd","index":4,"n_rows":304,"n_cols":4,"rows_kept":304,"cut":false,"hidden":true,"merged":[]}
["<?xml version=\"1.0\" encoding=\"UTF-8\" ?>"]
["<xsd:schema xmlns:xsd=\"http://www.w3.org/2001/XMLSchema\" elementFormDefault=\"qualified\" attributeFormDefault=\"unqualified\">"]
[]
["<!-- 三次調整力①直前計測型基準値内訳実績(0331) -->"]
["<!-- 三次①基準値 2020.10 rev 0.0 Release -->"]
[]
["<!-- メッセージグループヘッダ -->"]
[null,"<xsd:element name=\"MMS-MSG\" type=\"TypeMMS-MSG\" />"]
[null,"<xsd:complexType name=\"TypeMMS-MSG\">"]
[null,null,"<xsd:sequence>"]
[null,null,null,"<xsd:element name=\"JPMGRP\" type=\"TypeJPMGRP\" />"]
[null,null,"</xsd:sequence>"]
[null,null,"<!-- BPID機関コード -->"]
[null,null,"<xsd:attribute name=\"BPID\"    type=\"CdC10-OCTO\"   use=\"required\" />"]
[null,null,"<!-- BPID副機関コード -->"]
[null,null,"<xsd:attribute name=\"BPIDSUB\" type=\"CdC11-W9\"     use=\"required\" />"]
[null,null,"<!-- 各BP標準の版 -->"]
[null,null,"<xsd:attribute name=\"BPIDVER\" type=\"CdC12-3A\"     use=\"required\" />"]
[null,null,"<!-- 情報区分コード -->"]
[null,null,"<xsd:attribute name=\"MSGID\"   type=\"CdC14\"        use=\"required\" />"]
[null,null,"<!-- マッピング規則の版 -->"]
[null,null,"<xsd:attribute name=\"MAPVER\"  type=\"CdC21\"        use=\"required\" />"]
[null,"</xsd:complexType>"]
[]
[null,"<!-- メッセージ定義 -->"]
[null,"<xsd:complexType name=\"TypeJPMGRP\">"]
[null,null,"<xsd:sequence>"]
[null,null,null,"<!-- メッセージグループヘッダ -->"]
[null,null,null,"<xsd:element name=\"JPMGH\" type=\"TypeJPMGH\" />"]
[null,null,null,"<!-- 業務メッセージ -->"]
[null,null,null,"<xsd:element name=\"JPTRM\" type=\"TypeJPTRM\" />"]
[null,null,"</xsd:sequence>"]
[null,null,"<!-- メッセージグループの属性定義 -->"]
[null,null,"<!-- メッセージグループのシーケンス番号 -->"]
[null,null,"<xsd:attribute name=\"SEQ\" type=\"NI5\" use=\"required\" />"]
[null,"</xsd:complexType>"]
[]
["<!-- メッセージグループヘッダ -->"]
[null,"<xsd:complexType name=\"TypeJPMGH\">"]
[null,null,"<xsd:sequence>"]
[null,null,null,"<!-- 運用モード -->"]
[null,null,null,"<xsd:element name=\"JPC03\" type=\"CdC03\" />"]
[null,null,null,"<!-- 発信者コード -->"]
[null,null,null,"<xsd:element name=\"JPC06\" type=\"CdC06\" />"]
[null,null,null,"<!-- 受信者コード -->"]
[null,null,null,"<xsd:element name=\"JPC09\" type=\"CdC09\" />"]
[null,null,null,"<!-- BPID機関コード -->"]
[null,null,null,"<xsd:element name=\"JPC10\" type=\"CdC10-OCTO\" />"]
[null,null,null,"<!-- BPID副機関コード -->"]
[null,null,null,"<xsd:element name=\"JPC11\" type=\"CdC11-W9\" />"]
[null,null,null,"<!-- BPIDVER -->"]
[null,null,null,"<xsd:element name=\"JPC12\" type=\"CdC12-3A\" />"]
[null,null,null,"<!-- 情報区分コード -->"]
[null,null,null,"<xsd:element name=\"JPC14\" type=\"CdC14\" />"]
[null,null,null,"<!-- 作成日付時刻 -->"]
[null,null,null,"<xsd:element name=\"JPC19\" type=\"DT_YYMMDDHHMMSS\" />"]
[null,null,null,"<!-- 構文規則識別版数 -->"]
[null,null,null,"<xsd:element name=\"JPC21\" type=\"CdC21\" />"]
[null,null,"</xsd:sequence>"]
[null,"</xsd:complexType>"]
[]
["<!-- 業務メッセージ -->"]
[null,"<xsd:complexType name=\"TypeJPTRM\">"]
[null,null,"<xsd:sequence>"]
[null,null,null,"<!-- 情報区分コード -->"]
[null,null,null,"<xsd:element name=\"JP00002\" type=\"STR4S\" />"]
[null,null,null,"<!-- 情報区分名称 -->"]
[null,null,null,"<xsd:element name=\"JP06170\" type=\"STR50\" minOccurs=\"0\" maxOccurs=\"1\" />"]
[null,null,null,"<!-- 送信者コード -->"]
[null,null,null,"<xsd:element name=\"JP06110\" type=\"STR5S\" />"]
[null,null,null,"<!-- 送信者名称 -->"]
[null,null,null,"<xsd:element name=\"JP06111\" type=\"STR50\" minOccurs=\"0\" maxOccurs=\"1\" />"]
[null,null,null,"<!-- 提出先事業者コード -->"]
[null,null,null,"<xsd:element name=\"JP06358\" type=\"STR5S\" />"]
[null,null,null,"<!-- 提出先事業者 -->"]
[null,null,null,"<xsd:element name=\"JP06359\" type=\"STR50\" minOccurs=\"0\" maxOccurs=\"1\" />"]
[null,null,null,"<!-- アグリゲーションコーディネータ用系統コード -->"]
[null,null,null,"<xsd:element name=\"JP06700\" type=\"CD06700\" />"]
[null,null,null,"<!-- アグリゲーションコーディネータ名称 -->"]
[null,null,null,"<xsd:element name=\"JP06701\" type=\"STR50\" minOccurs=\"0\" maxOccurs=\"1\" />"]
[null,null,null,"<!-- 対象期間開始年月日 -->"]
[null,null,null,"<xsd:element name=\"JP06171\" type=\"DT_YYYYMMDD\" />"]
[null,null,null,"<!-- 対象ブロック -->"]
[null,null,null,"<xsd:element name=\"JP06702\" type=\"CD06702\" />"]
[null,null,null,"<!-- 対象需要家リスト・パターン番号 -->"]
[null,null,null,"<xsd:element name=\"JP06703\" type=\"CD06703\" />"]
[null,null,null,"<!-- 帳票作成支援ツール名 -->"]
[null,null,null,"<xsd:element name=\"JP06613\" type=\"STR50\" minOccurs=\"0\" maxOccurs=\"1\" />"]
[]
[null,null,null,"<!-- M10ループ -->"]
[null,null,null,"<xsd:element name=\"JPM00010\" type=\"TypeJPM00010\" />"]
[null,null,"</xsd:sequence>"]
[null,"<!-- メッセージの属性（シーケンス番号） -->"]
[null,null,"<xsd:attribute name=\"SEQ\" type=\"NI5\" use=\"required\" />"]
[null,"</xsd:complexType>"]
[]
[null,"<!-- M10ループ -->"]
[null,"<xsd:complexType name=\"TypeJPM00010\">"]
[null,null,"<xsd:sequence>"]
[null,null,null,"<xsd:element name=\"JPMR00010\" type=\"TypeJPMR00010\" minOccurs=\"1\" maxOccurs=\"999\" />"]
[null,null,"</xsd:sequence>"]
[null,"</xsd:complexType>"]
[]
[null,"<!-- M10ループ中身 -->"]
[null,"<xsd:complexType name=\"TypeJPMR00010\">"]
[null,null,"<xsd:sequence>"]
[null,null,null,"<!-- 事業者コード -->"]
[null,null,null,"<xsd:element name=\"JP06316\" type=\"STR5S\" />"]
[null,null,null,"<!-- 小売電気事業者名 -->"]
[null,null,null,"<xsd:element name=\"JP06317\" type=\"STR50\" minOccurs=\"0\" maxOccurs=\"1\" />"]
[null,null,null,"<!-- M11ループ -->"]
[null,null,null,"<xsd:element name=\"JPM00011\" type=\"TypeJPM00011\" />"]
[null,null,"</xsd:sequence>"]
[null,"</xsd:complexType>"]
[]
[null,"<!-- M11ループ -->"]
[null,"<xsd:complexType name=\"TypeJPM00011\">"]
[null,null,"<xsd:sequence>"]
[null,null,null,"<xsd:element name=\"JPMR00011\" type=\"TypeJPMR00011\" minOccurs=\"6\" maxOccurs=\"6\" />"]
[null,null,"</xsd:sequence>"]
[null,"</xsd:complexType>"]
[]
[null,"<!-- M11ループ中身 -->"]
[null,"<xsd:complexType name=\"TypeJPMR00011\">"]
[null,null,"<xsd:sequence>"]
[null,null,null,"<!-- 時刻コード -->"]
[null,null,null,"<xsd:element name=\"JP06219\" type=\"CD06252\" />"]
[null,null,null,"<!-- 小売電気事業者毎の基準値 -->"]
[null,null,null,"<xsd:element name=\"JP06705\" type=\"NI9\" />"]
[null,null,"</xsd:sequence>"]
[null,"</xsd:complexType>"]
[]
["<!-- JPC10:BPID機関コード(OCTO) -->"]
["<xsd:simpleType name=\"CdC10-OCTO\">"]
[null,"<xsd:restriction base=\"xsd:string\">"]
[null,null,null,"<xsd:enumeration value=\"OCTO\" />"]
[null,"</xsd:restriction>"]
["</xsd:simpleType>"]
[]
["<!-- JPC11:BPID副機関コード(W9) -->"]
["<xsd:simpleType name=\"CdC11-W9\">"]
[null,"<xsd:restriction base=\"xsd:string\">"]
[null,null,"<xsd:enumeration value=\"W9\" />"]
[null,"</xsd:restriction>"]
["</xsd:simpleType>"]
[]
["<!-- JPC12:BPID版(3A) -->"]
["<xsd:simpleType name=\"CdC12-3A\">"]
[null,"<xsd:restriction base=\"xsd:string\">"]
[null,null,"<xsd:enumeration value=\"3A\" />"]
[null,"</xsd:restriction>"]
["</xsd:simpleType>"]
[]
["<!-- 情報区分コード -->"]
["<xsd:simpleType name=\"CdC14\">"]
[null,"<xsd:restriction base=\"xsd:string\">"]
[null,null,"<xsd:enumeration value=\"0331\" />"]
[null,"</xsd:restriction>"]
["</xsd:simpleType>"]
[]
["<!-- JPC21:構文規則識別版数 -->"]
["<xsd:simpleType name=\"CdC21\">"]
[null,"<xsd:restriction base=\"xsd:string\">"]
[null,null,"<xsd:enumeration value=\"1.0-1A\" />"]
[null,"</xsd:restriction>"]
["</xsd:simpleType>"]
[]
["<!-- JPC03:運用モード -->"]
["<xsd:simpleType name=\"CdC03\">"]
[null,"<xsd:restriction base=\"xsd:string\">"]
[null,null,"<xsd:enumeration value=\"\" />"]
[null,null,"<xsd:enumeration value=\"0\" />"]
[null,null,"<xsd:enumeration value=\"1\" />"]
[null,"</xsd:restriction>"]
["</xsd:simpleType>"]
[]
["<!-- JPC06:発信者コード -->"]
["<xsd:simpleType name=\"CdC06\">"]
[null,"<xsd:restriction base=\"xsd:string\">"]
[null,null,"<xsd:pattern value=\"\\w{5}[0]{7}\" />"]
[null,"</xsd:restriction>"]
["</xsd:simpleType>"]
[]
["<!-- アグリゲーター用系統コード -->"]
["<xsd:simpleType name=\"CD06700\">"]
[null,"<xsd:restriction base=\"xsd:string\">"]
[null,null,"<xsd:pattern value=\"[0-9]Y[&#x20;-&#x7e;]{3}\" />"]
[null,"</xsd:restriction>"]
["</xsd:simpleType>"]
[]
[]
["<!-- JPC09:受信者コード -->"]
["<xsd:simpleType name=\"CdC09\">"]
[null,"<xsd:restriction base=\"xsd:string\">"]
[null,null,"<xsd:pattern value=\"\\w{5}[0]{7}\" />"]
[null,"</xsd:restriction>"]
["</xsd:simpleType>"]
[]
[]
[]
["<!-- 日付関連 -->"]
["<xsd:simpleType name=\"DT_YYMMDDHHMMSS\">"]
[null,"<xsd:restriction base=\"xsd:string\">"]
[null,null,"<xsd:pattern value=\"\\d{12}\" />"]
[null,"</xsd:restriction>"]
["</xsd:simpleType>"]
[]
["<!-- 対象ブロック -->"]
["<xsd:simpleType name=\"CD06702\">"]
[null,"<xsd:restriction base=\"xsd:string\">"]
[null,null,"<xsd:enumeration value=\"1\" />   <!-- 対象ブロック1 -->"]
[null,null,"<xsd:enumeration value=\"2\" />   <!-- 対象ブロック2 -->"]
[null,null,"<xsd:enumeration value=\"3\" />   <!-- 対象ブロック3 -->"]
[null,null,"<xsd:enumeration value=\"4\" />   <!-- 対象ブロック4 -->"]
[null,null,"<xsd:enumeration value=\"5\" />   <!-- 対象ブロック5 -->"]
[null,null,"<xsd:enumeration value=\"6\" />   <!-- 対象ブロック6 -->"]
[null,null,"<xsd:enumeration value=\"7\" />   <!-- 対象ブロック7 -->"]
[null,null,"<xsd:enumeration value=\"8\" />   <!-- 対象ブロック8 -->"]
[null,"</xsd:restriction>"]
["</xsd:simpleType>"]
[]
["<!-- 対象パターン番号 -->"]
["<xsd:simpleType name=\"CD06703\">"]
[null,"<xsd:restriction base=\"xsd:string\">"]
[null,null,"<xsd:enumeration value=\"01\" />  <!-- 対象パターン① -->"]
[null,null,"<xsd:enumeration value=\"02\" />  <!-- 対象パターン② -->"]
[null,null,"<xsd:enumeration value=\"03\" />  <!-- 対象パターン③ -->"]
[null,null,"<xsd:enumeration value=\"04\" />  <!-- 対象パターン④ -->"]
[null,null,"<xsd:enumeration value=\"05\" />  <!-- 対象パターン⑤ -->"]
[null,null,"<xsd:enumeration value=\"06\" />  <!-- 対象パターン⑥ -->"]
[null,null,"<xsd:enumeration value=\"07\" />  <!-- 対象パターン⑦ -->"]
[null,null,"<xsd:enumeration value=\"08\" />  <!-- 対象パターン⑧ -->"]
[null,null,"<xsd:enumeration value=\"09\" />  <!-- 対象パターン⑨ -->"]
[null,null,"<xsd:enumeration value=\"10\" />  <!-- 対象パターン⑩ -->"]
[null,null,"<xsd:enumeration value=\"11\" />  <!-- 対象パターン⑪ -->"]
[null,null,"<xsd:enumeration value=\"12\" />  <!-- 対象パターン⑫ -->"]
[null,null,"<xsd:enumeration value=\"13\" />  <!-- 対象パターン⑬ -->"]
[null,null,"<xsd:enumeration value=\"14\" />  <!-- 対象パターン⑭ -->"]
[null,null,"<xsd:enumeration value=\"15\" />  <!-- 対象パターン⑮ -->"]
[null,null,"<xsd:enumeration value=\"16\" />  <!-- 対象パターン⑯ -->"]
[null,null,"<xsd:enumeration value=\"17\" />  <!-- 対象パターン⑰ -->"]
[null,null,"<xsd:enumeration value=\"18\" />  <!-- 対象パターン⑱ -->"]
[null,null,"<xsd:enumeration value=\"19\" />  <!-- 対象パターン⑲ -->"]
[null,null,"<xsd:enumeration value=\"20\" />  <!-- 対象パターン⑳ -->"]
[null,"</xsd:restriction>"]
["</xsd:simpleType>"]
[]
["<!-- JP06252:時刻コード -->"]
["<xsd:simpleType name=\"CD06252\">"]
[null,"<xsd:restriction base=\"xsd:string\">"]
[null,null,"<xsd:pattern value=\"0[1-9]|[1-3][0-9]|4[0-8]\" />"]
[null,"</xsd:restriction>"]
["</xsd:simpleType>"]
[]
["<!-- 日付関連 -->"]
["<xsd:simpleType name=\"DT_YYYYMMDD\">"]
[null,"<xsd:restriction base=\"xsd:string\">"]
[null,null,"<xsd:pattern value=\"\\d{8}\" />"]
[null,"</xsd:restriction>"]
["</xsd:simpleType>"]
[]
["<!-- 数値型 -->"]
["<!-- ５桁 -->"]
["<xsd:simpleType name=\"NI5\">"]
[null,"<xsd:restriction base=\"xsd:nonNegativeInteger\">"]
[null,null,"<xsd:totalDigits value=\"5\" />"]
[null,"</xsd:restriction>"]
["</xsd:simpleType>"]
[]
["<!-- ９桁 -->"]
["<xsd:simpleType name=\"NI9\">"]
[null,"<xsd:restriction base=\"xsd:nonNegativeInteger\">"]
[null,null,"<xsd:totalDigits value=\"9\" />"]
[null,"</xsd:restriction>"]
["</xsd:simpleType>"]
[]
["<!-- 文字型 -->"]
["<!-- 50文字 -->"]
["<xsd:simpleType name=\"STR50\">"]
[null,"<xsd:restriction base=\"xsd:string\">"]
[null,null,"<xsd:minLength value=\"1\" />"]
[null,null,"<xsd:maxLength value=\"50\" />"]
[null,"</xsd:restriction>"]
["</xsd:simpleType>"]
[]
["<!-- ４文字・半角 -->"]
["<xsd:simpleType name=\"STR4S\">"]
[null,"<xsd:restriction base=\"xsd:string\">"]
[null,null,"<xsd:pattern value=\"[&#x20;-&#x7e;]+\" />"]
[null,null,"<xsd:minLength value=\"1\" />"]
[null,null,"<xsd:maxLength value=\"4\" />"]
[null,"</xsd:restriction>"]
["</xsd:simpleType>"]
[]
["<!-- ５文字・半角 -->"]
["<xsd:simpleType name=\"STR5S\">"]
[null,"<xsd:restriction base=\"xsd:string\">"]
[null,null,"<xsd:pattern value=\"[&#x20;-&#x7e;]+\" />"]
[null,null,"<xsd:minLength value=\"1\" />"]
[null,null,"<xsd:maxLength value=\"5\" />"]
[null,"</xsd:restriction>"]
["</xsd:simpleType>"]
[]
["</xsd:schema>"]